bitfinex/quotes_ETHUSD_20210401
["timestamp","ask_amount","ask_price","bid_price","bid_amount"]
[1617251047671,3.07853216,1928.1,1927.7,0.4]
[1617251048072,3.07853216,1928.1,1927.6,3.89153]
[1617251048272,3.07853216,1928.1,1927.6,12.35412]
[1617251048472,3.07853216,1928.1,1927.6,16.07412]
[1617251048896,3.07853216,1928.1,1927.7,0.39]
[1617251049495,3.07853216,1928.1,1927.7,12.06294]
[1617251050506,3.07853216,1928.1,1927.9,0.39]
[1617251050900,3.07853216,1928.1,1927.7,11.67294]
[1617251051100,3.07853216,1928.1,1927.8,0.38]
[1617251051539,2.07853216,1928.1,1927.8,0.38]
[1617251051739,2.07853216,1928.1,1927.7,11.67294]
[1617251051941,17.03076251,1928.2,1928.0,0.4]
[1617251052140,16.89076251,1928.2,1927.8,0.38]
[1617251052742,0.54134902,1928.1,1927.8,0.38]
[1617251053144,0.54134902,1928.1,1927.7,11.67294]
[1617251053542,0.54134902,1928.1,1927.7,12.07294]
[1617251054150,16.89076251,1928.2,1927.7,12.07294]
[1617251054551,16.89076251,1928.2,1927.8,2.87672826]
[1617251054754,9.10832251,1928.2,1927.9,0.4]
[1617251055153,9.37900239,1928.2,1927.9,4.29091]
[1617251055953,9.37900239,1928.2,1927.9,3.89091]
[1617251056572,16.16140239,1928.2,1927.9,3.89091]
[1617251058374,16.16140239,1928.2,1927.9,4.29091]
[1617251058973,15.89072251,1928.2,1927.9,4.29091]
[1617251059395,8.10832251,1928.2,1927.9,3.89091]
[1617251059997,8.10832251,1928.2,1927.9,4.27091]
[1617251060697,8.10832251,1928.2,1928.0,0.39]
[1617251061496,7.10832251,1928.2,1928.0,0.39]
[1617251063326,7.10832251,1928.2,1927.9,3.89091]
[1617251063531,11.00931468,1928.2,1927.9,3.89091]
[1617251063928,9.57040673,1928.2,1927.9,3.89091]
[1617251064127,9.85832251,1928.2,1927.9,3.89091]
[1617251065152,7.10832251,1928.2,1927.9,3.89091]
[1617251065359,7.10832251,1928.2,1928.0,0.4]
[1617251066554,6.10832251,1928.2,1928.0,0.4]
[1617251066754,6.10832251,1928.2,1927.9,3.89091]
[1617251066999,6.10832251,1928.2,1927.8,0.4]
[1617251067200,6.10832251,1928.2,1927.6,6.44499852]
[1617251067399,6.10832251,1928.2,1927.7,0.722]
[1617251067798,6.10832251,1928.2,1927.9,0.41]
[1617251067799,6.09794751,1928.2,1927.9,0.41]
[1617251068199,6.09794751,1928.2,1927.7,8.10405]
[1617251068200,13.88023751,1928.2,1927.7,8.10405]
[1617251068400,13.88023751,1928.2,1927.8,0.4]
[1617251068799,13.88023751,1928.2,1928.0,0.4]
[1617251069001,13.88023751,1928.2,1928.1,8.94957958]
[1617251069002,6.09794751,1928.2,1928.1,8.94957958]
[1617251069203,6.09794751,1928.2,1928.1,9.34957958]
[1617251069402,6.09794751,1928.2,1928.1,6.8898]
[1617251069607,6.09794751,1928.2,1928.1,6.4898]
[1617251070611,6.09794751,1928.2,1927.8,8.45167]
[1617251070808,6.09794751,1928.2,1927.8,11.57167]
[1617251071409,6.09794751,1928.2,1927.9,0.41]
[1617251071611,5.09794751,1928.2,1927.9,0.41]
[1617251072624,12.88012751,1928.2,1927.8,3.12]
[1617251072824,12.88012751,1928.2,1927.8,0.4]
[1617251074426,12.88012751,1928.2,1927.7,6.5124262]
[1617251074625,12.88012751,1928.2,1927.7,6.9224262]
[1617251074850,13.15079935,1928.2,1927.7,6.9224262]
[1617251075252,13.15079935,1928.2,1927.7,14.7042962]
[1617251076052,13.15079935,1928.2,1927.8,0.4]
[1617251077254,0.54134324,1928.1,1927.8,0.4]
[1617251077476,0.54134324,1928.1,1927.9,2.45748642]
[1617251077677,0.54134324,1928.1,1927.8,2.85748642]
[1617251077876,0.54134324,1928.1,1927.7,11.95267]
[1617251078077,0.54134324,1928.1,1927.8,2.45748642]
[1617251078878,0.54134324,1928.1,1927.8,10.23899642]
[1617251079677,0.54134324,1928.1,1927.9,0.39]
[1617251079878,0.54134324,1928.1,1927.9,6.2695]
[1617251080298,0.54134324,1928.1,1927.9,5.8795]
[1617251080898,5.36861935,1928.2,1927.9,5.8795]
[1617251081702,5.36861935,1928.2,1927.9,6.1595]
[1617251081899,5.36861935,1928.2,1927.9,8.61698642]
[1617251082098,5.36861935,1928.2,1927.9,14.33071]
[1617251082299,5.36861935,1928.2,1927.9,13.94071]
[1617251083149,5.36861935,1928.2,1927.9,6.5495]
[1617251083350,5.36861935,1928.2,1927.9,9.00698642]
[1617251083551,4.36861935,1928.2,1927.9,6.1595]
[1617251084353,4.36861935,1928.2,1927.9,6.5595]
[1617251086159,4.36861935,1928.2,1927.9,6.1595]
[1617251086657,12.15072935,1928.2,1927.9,6.1595]
[1617251088279,12.15072935,1928.2,1927.9,0.28]
[1617251088480,11.15072935,1928.2,1927.9,0.28]
[1617251088678,11.15072935,1928.2,1927.9,0.67]
[1617251089278,3.36861935,1928.2,1927.9,0.67]
[1617251089478,2.36861935,1928.2,1927.9,0.67]
[1617251090709,2.36861935,1928.2,1927.9,0.28]
[1617251090908,10.15077935,1928.2,1927.9,0.28]
[1617251091307,12.90077935,1928.2,1927.9,0.28]
[1617251091511,12.90077935,1928.2,1927.7,13.0908]
[1617251091709,12.90077935,1928.2,1927.7,8.3908]
[1617251091908,12.90077935,1928.2,1927.7,11.23147532]
[1617251092308,12.90077935,1928.2,1927.7,4.89]
[1617251092508,11.90077935,1928.2,1927.7,1.87]
[1617251092908,11.90077935,1928.2,1927.7,1.59]
[1617251093107,18.87627935,1928.2,1927.7,1.59]
[1617251093530,18.61427935,1928.2,1927.7,1.59]
[1617251093730,18.61427935,1928.2,1927.7,0.39]
[1617251093931,18.61427935,1928.2,1927.8,0.38]
[1617251094332,15.86427935,1928.2,1927.8,0.38]
[1617251094532,14.86427935,1928.2,1927.8,0.38]
[1617251094932,14.75766,1928.2,1927.8,0.66]
[1617251095362,14.75766,1928.2,1928.0,0.39]
[1617251095963,14.75766,1928.2,1927.6,12.30087]
[1617251096164,14.75766,1928.2,1927.7,0.39]
[1617251096363,14.75766,1928.2,1927.7,0.364]
[1617251096766,14.75766,1928.2,1927.7,0.754]
[1617251097564,14.49766,1928.2,1927.8,0.41]
[1617251097763,14.49766,1928.2,1927.9,0.41]
[1617251097963,14.49766,1928.2,1927.9,0.69]
[1617251098603,14.49766,1928.2,1927.7,2.43495584]
[1617251098803,14.49766,1928.2,1927.7,0.4]
[1617251099604,13.49766,1928.2,1927.7,0.4]
[1617251099806,13.49766,1928.2,1927.8,0.38]
[1617251100006,13.49766,1928.2,1927.8,0.723]
[1617251100206,6.52216,1928.2,1927.8,0.723]
[1617251101007,6.52216,1928.2,1927.9,0.4]
[1617251102209,6.52216,1928.2,1927.6,11.95289]
[1617251102409,6.52216,1928.2,1927.7,0.39]
[1617251102611,3.43133209,1928.3,1928.0,0.4]
[1617251102809,3.29133209,1928.3,1928.0,0.4]
[1617251103009,3.29133209,1928.3,1928.0,0.68]
[1617251103409,0.54133209,1928.3,1927.9,0.39]
[1617251103610,0.54133209,1928.3,1927.7,7.87554894]
[1617251103833,0.54133209,1928.3,1927.8,0.28]
[1617251104034,2.97411859,1928.3,1927.8,0.28]
[1617251104433,3.29133209,1928.3,1927.8,0.28]
[1617251104637,2.58133209,1928.3,1927.6,3.98493894]
[1617251104833,2.58133209,1928.3,1927.8,0.28]
[1617251105033,3.28134419,1928.3,1927.8,0.28]
[1617251105233,10.97216353,1928.3,1927.8,0.28]
[1617251105433,2.75,1928.2,1927.8,0.28]
[1617251105833,2.75,1928.2,1927.8,0.4]
[1617251106234,2.75,1928.2,1927.8,0.68]
[1617251107261,7.7827,1928.0,1927.7,0.39]
[1617251108658,7.7827,1928.0,1927.5,0.336]
[1617251108858,7.7827,1928.0,1927.6,2.81605274]
[1617251109082,7.7827,1928.0,1927.6,0.684]
[1617251109282,2.89,1928.2,1927.8,0.4]
[1617251109481,10.67223,1928.2,1927.8,0.4]
[1617251109681,10.53223,1928.2,1927.8,0.708]
[1617251110087,10.53223,1928.2,1927.9,0.4]
[1617251110284,7.78223,1928.2,1927.9,0.4]
[1617251110484,7.78223,1928.2,1927.8,0.308]
[1617251110683,7.78223,1928.2,1927.7,2.83605274]
[1617251110884,7.78223,1928.2,1927.7,3.11605274]
[1617251111084,7.78223,1928.2,1927.7,0.28]
[1617251111284,0.27068815,1928.1,1927.7,0.28]
[1617251111925,0.27068815,1928.1,1927.5,3.98518894]
[1617251112126,7.78281,1928.0,1927.6,3.11605274]
[1617251112727,0.41068815,1928.1,1927.6,3.11605274]
[1617251113428,0.41068815,1928.1,1927.8,0.38]
[1617251114029,0.41068815,1928.1,1927.7,0.28]
[1617251114232,8.19293815,1928.1,1927.7,0.67]
[1617251115037,8.19293815,1928.1,1927.6,0.28]
[1617251115233,8.19293815,1928.1,1927.6,0.67]
[1617251115432,8.28393725,1928.1,1927.6,0.67]
[1617251115632,8.19293815,1928.1,1927.6,0.67]
[1617251115831,8.19293815,1928.1,1927.6,0.28]
[1617251116034,0.54136926,1928.0,1927.4,0.09406894]
[1617251116233,0.54136926,1928.0,1927.3,0.09406894]
[1617251116234,16.93335274,1927.9,1927.3,0.09406894]
[1617251116434,16.93335274,1927.9,1926.6,3.8925]
[1617251116435,16.93335274,1927.9,1926.8,0.4]
[1617251116436,7.78586,1927.6,1926.8,0.4]
[1617251116634,9.8646,1927.4,1926.8,0.4]
[1617251117059,2.42605274,1927.3,1926.8,0.4]
[1617251117461,2.42605274,1927.3,1926.6,0.09406894]
[1617251117462,7.78731,1927.0,1926.6,0.09406894]
[1617251117665,16.91781,1927.0,1926.7,0.41]
[1617251119264,16.91781,1927.0,1926.5,0.336]
[1617251119911,16.91781,1927.0,1926.6,0.39]
[1617251120112,16.91781,1927.0,1926.8,0.4]
[1617251121112,16.91781,1927.0,1926.7,0.28]
[1617251121313,9.1305,1927.0,1926.8,0.41]
[1617251121513,0.14,1927.1,1926.8,2.83605274]
[1617251121714,0.14,1927.1,1926.8,0.41]
[1617251121913,0.54144136,1927.2,1926.8,2.83605274]
[1617251122114,0.54144136,1927.2,1927.0,2.0]
[1617251122512,0.54144136,1927.2,1927.0,2.39]
[1617251122717,11.08339515,1927.6,1927.0,2.39]
[1617251122718,7.7852,1927.5,1927.1,13.15605274]
[1617251122921,0.70103515,1927.6,1927.4,0.4]
[1617251123318,0.60999162,1927.6,1927.1,10.35]
[1617251123514,0.60999162,1927.6,1927.3,0.67]
[1617251123714,0.8409972,1927.7,1927.4,0.4]
[1617251124315,0.7009972,1927.7,1927.4,0.4]
[1617251125797,0.7009972,1927.7,1927.3,0.28]
[1617251125997,0.7009972,1927.7,1927.2,0.4]
[1617251125998,0.8409972,1927.7,1927.2,0.4]
[1617251126196,0.70162415,1927.6,1927.3,0.4]
[1617251126401,0.70162415,1927.6,1927.3,0.68]
[1617251126799,0.70162415,1927.6,1927.4,0.4]
[1617251127799,0.70162415,1927.6,1927.0,4.42605274]
[1617251127998,0.61050413,1927.6,1927.1,0.49406894]
[1617251128203,0.61050413,1927.6,1927.1,0.4]
[1617251128402,0.61050413,1927.6,1927.0,2.09406894]
[1617251128403,7.5429,1927.6,1927.0,2.09406894]
[1617251128606,7.63386545,1927.6,1927.0,2.0]
[1617251128804,7.78671,1927.2,1927.0,2.0]
[1617251129000,17.55291,1927.2,1927.0,2.0]
[1617251131002,18.01,1927.1,1927.0,2.0]
[1617251131202,13.0,1927.1,1927.0,2.0]
[1617251131604,20.78741,1927.1,1927.0,2.0]
[1617251132402,23.53741,1927.1,1927.0,2.0]
[1617251133109,10.53741,1927.1,1927.0,2.0]
[1617251135111,10.53741,1927.1,1927.0,1.95]
[1617251135536,18.87878538,1927.1,1927.0,1.95]
[1617251135736,23.83878538,1927.1,1927.0,1.95]
[1617251136737,16.05697743,1927.1,1927.0,1.95]
[1617251137962,16.03878538,1927.1,1927.0,1.95]
[1617251140800,11.02878538,1927.1,1927.0,1.95]
[1617251141803,15.09135601,1927.1,1927.0,1.95]
[1617251142199,16.44571444,1927.1,1927.0,1.95]
[1617251142602,17.64571444,1927.1,1927.0,1.95]
[1617251145214,16.44571444,1927.1,1927.0,1.95]
[1617251145414,15.90433906,1927.1,1927.0,1.95]
[1617251146235,17.51433906,1927.1,1927.0,1.95]
[1617251146438,31.71433906,1927.1,1927.0,1.95]
[1617251146635,23.71433906,1927.1,1927.0,1.95]
[1617251147036,17.51433906,1927.1,1927.0,1.95]
[1617251147235,17.10433906,1927.1,1927.0,1.95]
[1617251147434,15.90433906,1927.1,1927.0,1.95]
[1617251148236,20.91433906,1927.1,1927.0,1.95]
[1617251148464,19.24717559,1927.1,1927.0,1.95]
[1617251148866,6.49976559,1927.1,1927.0,1.95]
[1617251149268,4.06257063,1927.1,1927.0,1.95]
[1617251149667,0.27082601,1927.3,1927.0,2.35]
[1617251150269,8.05658601,1927.3,1927.0,2.35]
[1617251150870,8.05658601,1927.3,1927.1,0.39]
[1617251151087,8.05658601,1927.3,1927.0,1.95]
[1617251151286,2.75,1927.2,1927.0,1.95]
[1617251151692,5.01,1927.1,1927.0,1.95]
[1617251151887,21.06,1927.1,1927.0,1.95]
[1617251152386,23.81,1927.1,1927.0,1.95]
[1617251153187,15.54718,1927.1,1927.0,1.95]
[1617251154613,15.54718,1927.1,1927.0,1.7092]
[1617251157055,16.08861807,1927.1,1927.0,1.7092]
[1617251159470,22.13861807,1927.1,1927.0,1.7092]
[1617251160261,16.08861807,1927.1,1927.0,1.7092]
[1617251161682,16.08861807,1927.1,1927.0,2.0992]
[1617251161887,11.07861807,1927.1,1927.0,2.0992]
[1617251162284,8.32861807,1927.1,1927.0,2.0992]
[1617251163286,11.07861807,1927.1,1927.0,1.7092]
[1617251164315,24.42861807,1927.1,1927.0,1.7092]
[1617251165116,34.59517062,1927.1,1927.0,1.7092]
[1617251165313,38.6582023,1927.1,1927.0,1.7092]
[1617251165715,68.6582023,1927.1,1927.0,1.7092]
[1617251166314,69.8582023,1927.1,1927.0,1.7092]
[1617251166515,70.2682023,1927.1,1927.0,1.7092]
[1617251166746,70.2682023,1927.1,1926.1,1.0]
[1617251166747,7.79026,1926.6,1926.1,1.0]
[1617251166948,16.24586208,1926.6,1926.1,1.0]
[1617251167147,5.01,1926.4,1926.1,1.0]
[1617251167547,5.01,1926.4,1926.1,1.4]
[1617251167950,8.33209904,1926.3,1926.2,0.4]
[1617251168548,0.54153904,1926.3,1926.2,0.4]
[1617251170767,0.54153904,1926.3,1926.2,4.6]
[1617251170970,0.54153904,1926.3,1926.2,3.4]
[1617251171170,0.54153904,1926.3,1926.2,0.4]
[1617251171371,0.54153904,1926.3,1926.2,3.4]
[1617251172211,0.54153904,1926.3,1926.2,5.83100208]
[1617251172411,0.54153904,1926.3,1926.2,7.03100208]
[1617251172615,2.75,1926.8,1926.2,7.03100208]
[1617251172812,2.75,1926.8,1926.5,0.41]
[1617251173211,0.54149373,1926.6,1926.5,0.41]
[1617251173412,0.54149373,1926.6,1926.5,0.4]
[1617251174617,0.54149373,1926.6,1926.2,9.32484208]
[1617251174815,0.54149373,1926.6,1926.3,0.39]
[1617251175416,0.54149373,1926.6,1926.5,0.39]
[1617251177442,0.54149373,1926.6,1926.4,0.4]
[1617251178044,0.54149373,1926.6,1926.5,0.41]
[1617251180266,0.54149373,1926.6,1926.4,4.2]
[1617251180469,0.54149373,1926.6,1926.5,0.41]
[1617251182697,0.54149373,1926.6,1926.4,4.2]
[1617251182895,0.54149373,1926.6,1926.4,4.61]
[1617251183098,0.54149373,1926.6,1926.5,0.4]
[1617251183296,0.54149373,1926.6,1926.4,4.2]
[1617251183498,0.54149373,1926.6,1926.4,6.63100208]
[1617251184098,0.54149373,1926.6,1926.4,14.41840208]
[1617251184297,0.54149373,1926.6,1926.5,0.39]
[1617251184497,0.54149373,1926.6,1926.4,4.6]
[1617251184696,0.54149373,1926.6,1926.5,0.39]
[1617251185568,0.54149373,1926.6,1926.4,14.41850208]
[1617251185773,0.54149373,1926.6,1926.4,14.79850208]
[1617251186571,0.54149373,1926.6,1926.5,0.4]
[1617251187371,0.54149373,1926.6,1926.5,0.35]
[1617251189174,0.54149373,1926.6,1926.4,6.63100208]
[1617251189374,0.54149373,1926.6,1926.4,7.02100208]
[1617251189574,0.54149373,1926.6,1926.4,12.37746]
[1617251189775,0.54149373,1926.6,1926.4,4.59]
[1617251189974,0.54149373,1926.6,1926.4,1.59]
[1617251190174,0.54149373,1926.6,1926.5,1.2]
[1617251191376,0.54149373,1926.6,1926.5,1.58]
[1617251192992,0.54149373,1926.6,1926.5,1.2]
[1617251193799,0.54149373,1926.6,1926.4,0.39]
[1617251194000,0.54149373,1926.6,1926.3,1.48]
[1617251194399,0.54149373,1926.6,1926.3,4.48]
[1617251194999,0.54149373,1926.6,1926.4,0.4]
[1617251195196,0.54149373,1926.6,1926.3,1.48]
[1617251196218,0.54149373,1926.6,1926.3,1.2]
[1617251197217,0.54149373,1926.6,1926.4,0.38]
[1617251197419,0.54149373,1926.6,1926.5,0.41]
[1617251197819,0.54149373,1926.6,1926.5,1.61]
[1617251198021,0.54149373,1926.6,1926.5,4.04100208]
[1617251198858,0.54149373,1926.6,1926.5,14.94100208]
[1617251199054,1.35376967,1926.7,1926.5,25.68796208]
[1617251199055,0.27087749,1926.7,1926.5,25.68796208]
[1617251199254,0.27087749,1926.7,1926.6,17.3]
[1617251199455,0.27087749,1926.7,1926.6,28.4215]
[1617251199656,5.15937079,1927.7,1926.9,0.42]
[1617251199657,0.01811076,1927.5,1926.9,0.42]
[1617251199856,0.01811076,1927.5,1927.0,0.39]
[1617251200055,0.14,1927.4,1927.0,0.39]
[1617251200255,0.14,1927.4,1926.9,1.62]
[1617251200861,2.76811009,1927.6,1927.0,0.28]
[1617251201062,2.76811009,1927.6,1927.0,8.535]
[1617251201264,2.75,1927.6,1927.1,1.2]
[1617251201470,0.0181094,1927.6,1927.1,1.2]
[1617251201663,7.78584,1927.5,1927.1,1.2]
[1617251202464,7.78584,1927.5,1927.1,1.501]
[1617251203915,7.78584,1927.5,1927.1,0.301]
[1617251204127,7.78584,1927.5,1926.8,1.2]
[1617251204315,0.14,1927.4,1926.8,1.88]
[1617251205016,8.32787992,1927.3,1926.8,1.88]
[1617251205217,8.32787992,1927.3,1926.8,1.48]
[1617251205416,11.07787992,1927.3,1926.8,0.28]
[1617251205618,11.07787992,1927.3,1926.7,1.2]
[1617251205619,19.07787992,1927.3,1926.7,1.2]
[1617251205817,16.30134992,1927.3,1926.6,0.67]
[1617251206017,16.30134992,1927.3,1926.6,1.87]
[1617251206018,0.14,1927.2,1926.6,1.87]
[1617251206221,7.78762,1927.0,1926.6,1.87]
[1617251206421,0.14,1927.2,1926.6,1.87]
[1617251206624,2.43134992,1927.3,1927.0,0.4]
[1617251207023,2.43134992,1927.3,1926.8,0.322]
[1617251207221,0.69948664,1927.4,1926.8,0.712]
[1617251207421,8.48567664,1927.4,1926.8,9.69759]
[1617251207623,0.69948664,1927.4,1927.1,0.68]
[1617251208026,2.75,1927.5,1927.1,1.88]
[1617251208027,3.44945234,1927.5,1927.1,1.88]
[1617251208223,3.44945234,1927.5,1927.1,0.68]
[1617251208421,0.69945234,1927.5,1927.1,1.88]
[1617251208622,0.69945234,1927.5,1926.9,8.17507]
[1617251208623,8.48491234,1927.5,1926.9,8.17507]
[1617251208848,8.48491234,1927.5,1926.9,0.28]
[1617251209650,8.48491234,1927.5,1927.1,0.39]
[1617251209853,0.69945234,1927.5,1927.0,8.20487]
[1617251210052,0.69945234,1927.5,1927.0,0.81]
[1617251210646,0.69945234,1927.5,1927.0,0.42]
[1617251211248,8.48487234,1927.5,1927.0,1.62]
[1617251211470,8.48487234,1927.5,1927.1,0.4]
[1617251211670,7.71687234,1927.5,1927.1,0.4]
[1617251212270,7.71687234,1927.5,1926.7,0.09406894]
[1617251212472,10.46687234,1927.5,1926.8,0.68]
[1617251212670,10.46687234,1927.5,1927.0,0.39]
[1617251212871,10.46687234,1927.5,1927.1,0.4]
[1617251213072,10.46687234,1927.5,1927.1,0.708]
[1617251213471,7.71687234,1927.5,1927.1,0.708]
[1617251213672,7.71687234,1927.5,1927.1,1.908]
[1617251214290,8.25814488,1927.5,1927.1,1.908]
[1617251214890,8.25814488,1927.5,1927.1,1.508]
[1617251215091,8.25814488,1927.5,1927.0,0.4]
[1617251215295,0.27078942,1927.4,1927.0,0.68]
[1617251215694,0.27078942,1927.4,1927.0,0.28]
[1617251216498,0.01211433,1927.1,1927.0,0.28]
[1617251217538,0.01211433,1927.1,1926.9,2.4070935]
[1617251217739,0.01211433,1927.1,1927.0,1.0]
[1617251218137,8.03078942,1927.4,1927.0,1.0]
[1617251218337,5.28078942,1927.4,1927.0,1.0]
[1617251218939,7.78617,1927.3,1927.0,1.28]
[1617251219745,0.54129364,1927.2,1927.0,1.28]
[1617251222163,0.54129364,1927.2,1927.0,1.0]
[1617251223365,0.54129364,1927.2,1927.1,0.4]
[1617251223566,0.54129364,1927.2,1927.0,1.0]
[1617251223764,0.54129364,1927.2,1927.0,1.4]
[1617251224793,0.54129364,1927.2,1927.0,2.6]
[1617251224996,0.54129364,1927.2,1927.0,2.2]
[1617251225197,0.54129364,1927.2,1927.0,1.0]
[1617251225599,7.59779306,1927.4,1927.0,1.38]
[1617251225795,20.60779306,1927.4,1927.0,1.0]
[1617251225993,13.01,1927.4,1927.0,1.0]
[1617251226194,5.16171119,1927.4,1927.0,1.0]
[1617251226595,7.78663,1927.2,1927.0,1.0]
[1617251226994,5.01,1927.1,1927.0,1.0]
[1617251227219,24.33771,1927.3,1927.0,1.0]
[1617251227418,32.33771,1927.3,1927.0,1.0]
[1617251228019,5.01,1927.1,1927.0,1.0]
[1617251228220,7.78707,1927.1,1927.0,1.0]
[1617251228421,12.79707,1927.1,1927.0,1.0]
[1617251228620,7.78707,1927.1,1927.0,1.0]
[1617251229219,12.79707,1927.1,1927.0,1.0]
[1617251229420,7.78707,1927.1,1927.0,1.0]
[1617251229620,13.18707,1927.1,1927.0,1.0]
[1617251229845,7.78707,1927.1,1927.0,1.0]
[1617251230670,7.86968161,1927.1,1927.0,1.0]
[1617251230869,8.95285853,1927.1,1927.0,1.0]
[1617251231466,9.49416365,1927.1,1927.0,1.0]
[1617251234901,22.50416365,1927.1,1927.0,1.0]
[1617251235702,21.50416365,1927.1,1927.0,1.0]
[1617251236300,9.49416365,1927.1,1927.0,1.0]
[1617251239524,8.41098673,1927.1,1927.0,1.0]
[1617251240550,7.41098673,1927.1,1927.0,1.0]
[1617251240949,7.41098673,1927.1,1927.0,1.4]
[1617251242150,7.41098673,1927.1,1927.0,1.0]
[1617251242350,21.66098673,1927.1,1927.0,1.0]
[1617251243372,15.41098673,1927.1,1927.0,1.0]
[1617251243972,7.41098673,1927.1,1927.0,1.0]
[1617251244374,15.41098673,1927.1,1927.0,1.0]
[1617251244773,15.56274827,1927.1,1927.0,1.0]
[1617251244974,15.41098673,1927.1,1927.0,1.0]
[1617251245392,23.56274915,1927.1,1927.0,1.0]
[1617251245593,23.19098673,1927.1,1927.0,1.0]
[1617251245794,23.34274752,1927.1,1927.0,1.0]
[1617251246395,33.54274752,1927.1,1927.0,1.0]
[1617251246798,15.4,1927.0,1926.1,15.4957]
[1617251246996,2.077143,1926.5,1926.3,1.044]
[1617251247195,2.08928454,1926.5,1926.3,1.044]
[1617251247394,2.08928454,1926.5,1926.3,0.4]
[1617251247795,0.01214184,1926.4,1926.3,0.4]
[1617251247995,2.61841684,1926.5,1926.1,1.41]
[1617251248254,7.80197235,1926.3,1926.1,1.41]
[1617251249451,0.01214235,1926.3,1926.2,0.4]
[1617251250054,0.55340017,1926.3,1926.2,0.4]
[1617251250654,0.55340017,1926.3,1926.2,2.78346956]
[1617251250858,0.01214235,1926.3,1926.2,2.78346956]
[1617251251055,0.01214201,1926.4,1926.2,2.78346956]
[1617251251261,0.01214208,1926.3,1926.2,12.58346956]
[1617251251658,0.01214199,1926.4,1926.2,13.78346956]
[1617251251857,0.01214199,1926.4,1926.3,13.66]
[1617251252056,16.29928023,1927.0,1926.3,21.44721]
[1617251252057,0.01213674,1926.5,1926.3,21.44721]
[1617251252255,0.01213674,1926.5,1926.4,2.78346956]
[1617251252655,0.01213674,1926.5,1926.4,0.4]
[1617251252854,2.076838,1926.9,1926.4,0.455]
[1617251253054,0.0121331,1926.5,1926.4,0.455]
[1617251254069,0.0121331,1926.5,1926.3,6.67735956]
[1617251254271,0.0121331,1926.5,1926.3,6.95735956]
[1617251255272,0.0121331,1926.5,1926.4,14.84]
[1617251255472,0.0121331,1926.5,1926.4,22.58]
[1617251255672,0.01213295,1926.6,1926.5,15.1]
[1617251255874,0.788177,1927.1,1926.6,9.48786705]
[1617251256106,0.21232629,1927.4,1927.0,0.38]
[1617251256303,12.18345456,1927.5,1927.0,0.66]
[1617251256506,22.56406536,1927.5,1927.1,0.42]
[1617251256705,6.65666213,1927.5,1927.1,0.42]
[1617251257506,7.7861,1927.3,1927.1,0.42]
[1617251257706,2.0763598,1927.2,1926.7,2.36808012]
[1617251257906,2.0763598,1927.2,1926.8,0.343]
[1617251258106,9.07102133,1927.5,1926.9,0.39]
[1617251258306,9.07102133,1927.5,1927.0,0.357]
[1617251258928,7.786,1927.3,1927.0,0.357]
[1617251259529,7.786,1927.3,1927.0,0.767]
[1617251260132,20.796,1927.3,1927.0,0.41]
[1617251260332,5.01,1927.3,1927.0,0.41]
[1617251260533,7.0864304,1927.3,1926.6,2.74214906]
[1617251260737,6.0864304,1927.3,1926.8,0.82]
[1617251261134,7.78687,1927.1,1926.8,0.82]
[1617251261365,7.78687,1927.1,1926.9,0.38]
[1617251261563,1.0764304,1927.3,1926.9,0.38]
[1617251261767,0.54111067,1927.1,1926.9,0.687]
[1617251262366,0.54111067,1927.1,1927.0,2.75624432]
[1617251263766,0.54111067,1927.1,1926.9,0.357]
[1617251263965,0.54111067,1927.1,1926.9,0.747]
[1617251264770,0.54111067,1927.1,1926.9,1.947]
[1617251265167,0.54111067,1927.1,1927.0,2.36624432]
[1617251265567,1.61726787,1927.5,1926.9,1.557]
[1617251265769,1.61726787,1927.5,1926.9,1.59]
[1617251265967,1.61726787,1927.5,1927.0,0.378]
[1617251266590,7.7862,1927.2,1927.0,0.378]
[1617251266793,7.7862,1927.2,1926.9,0.39]
[1617251266993,7.7862,1927.2,1926.7,2.36624432]
[1617251267189,7.7862,1927.2,1926.7,2.77624432]
[1617251267390,7.7862,1927.2,1926.7,0.69]
[1617251267992,15.2298,1927.2,1926.7,0.69]
[1617251268393,15.2298,1927.2,1926.8,2.772652]
[1617251268593,15.2298,1927.2,1926.8,3.162652]
[1617251268797,15.2298,1927.2,1926.8,0.81]
[1617251269426,15.2298,1927.2,1926.9,0.39]
[1617251270228,15.2298,1927.2,1926.8,2.772652]
[1617251270628,14.2298,1927.2,1926.9,0.4]
[1617251270828,14.2298,1927.2,1926.8,2.772652]
[1617251271029,14.2298,1927.2,1926.8,3.182652]
[1617251271230,7.4436,1927.2,1926.8,3.182652]
[1617251271429,25.9904,1927.6,1926.9,0.4]
[1617251271630,0.54110454,1927.2,1926.9,0.4]
[1617251271851,0.54110454,1927.2,1926.8,0.42]
[1617251272052,0.54110454,1927.2,1926.8,0.81]
[1617251272253,0.27071162,1927.1,1926.8,0.81]
[1617251272451,0.27071162,1927.1,1927.0,0.39]
[1617251273953,0.27071162,1927.1,1926.7,6.24379314]
[1617251274154,0.27071162,1927.1,1926.8,0.764]
[1617251274393,0.27071162,1927.1,1926.9,2.35089314]
[1617251275604,7.59767616,1927.3,1926.9,2.35089314]
[1617251275806,7.59767616,1927.3,1927.0,0.39]
[1617251276809,7.59767616,1927.3,1926.9,0.28]
[1617251277409,7.59767616,1927.3,1926.9,0.68]
[1617251277607,7.59767616,1927.3,1927.0,2.7255858]
[1617251277806,7.59767616,1927.3,1927.0,3.0055858]
[1617251278007,7.59767616,1927.3,1926.8,2.7555858]